fUST/lending_fUST_20241007
["ID","MTS","AMOUNT","RATE_DAILY","PERIOD"]
[339963977,1728230432496,150.0,0.00019138,120]
[339963978,1728230494422,2153.07062717,0.0001,2]
[339963979,1728230551826,150.0,0.00019549,120]
[339964031,1728231038775,-273.98,0.00010959,2]
[339964032,1728231038787,-300.0,0.00012333,2]
[339964033,1728231038798,-300.0,0.00012333,2]
[339964034,1728231038808,-13817.214234,0.00012334,2]
[339964073,1728231040668,-3282.69148797,0.00012334,2]
[339964075,1728231040681,-7800.09427803,0.00012334,2]
[339964077,1728231040691,-860.38609089,0.000124,2]
[339964079,1728231040701,-1495.06459092,0.000125,2]
[339964082,1728231040712,-500.0,0.0001292,2]
[339964084,1728231040722,-208.30258486,0.00012996,2]
[339964086,1728231040731,-2251.39807847,0.00012996,2]
[339964088,1728231040742,-2000.0,0.00013,2]
[339964090,1728231040752,-465.01006767,0.00013094,2]
[339964092,1728231040762,-258.745366,0.00013096,2]
[339964094,1728231040772,-307.1420733,0.0001326,2]
[339964096,1728231040783,-406.6645446,0.0001326,2]
[339964098,1728231040792,-153.0,0.0001326,2]
[339964100,1728231040803,-153.0,0.0001326,2]
[339964102,1728231040814,-308.1091693,0.0001326,2]
[339964104,1728231040824,-6491.68127903,0.00013356,2]
[339964106,1728231040835,-2251.39807842,0.00013407,2]
[339964109,1728231040845,-1508.815468,0.00013418,2]
[339964111,1728231040854,-2000.0,0.000135,2]
[339964113,1728231040865,-420.0,0.00013534,2]
[339964115,1728231040875,-420.0,0.00013566,2]
[339964117,1728231040884,-150.0,0.00013567,2]
[339964119,1728231040894,-1508.815468,0.00013586,2]
[339964121,1728231040904,-654.80922054,0.00013598,2]
[339964123,1728231040914,-2000.0,0.000136,2]
[339964125,1728231040923,-348.091158,0.000136,4]
[339964127,1728231040933,-168.965,0.0001362,2]
[339964129,1728231040943,-9940.9729327,0.00013668,2]
[339964131,1728231040953,-1900.17434009,0.00013668,2]
[339964133,1728231040963,-19881.9458654,0.00013668,2]
[339964135,1728231040974,-3800.34868018,0.00013668,2]
[339964137,1728231040985,-9940.9729327,0.00013671,2]
[339964139,1728231040995,-1900.17434009,0.00013671,2]
[339964141,1728231041009,-500.0,0.00013673,2]
[339964143,1728231041018,-500.0,0.00013673,2]
[339964144,1728231041029,-500.0,0.00013673,2]
[339964145,1728231041040,-501.36078887,0.00013673,2]
[339964146,1728231041052,-500.0,0.00013673,2]
[339964147,1728231041063,-500.0,0.00013673,2]
[339964148,1728231041074,-617.81017745,0.00013673,2]
[339964149,1728231041083,-500.0,0.00013673,2]
[339964150,1728231041094,-500.0,0.00013673,2]
[339964151,1728231041104,-500.0,0.00013673,2]
[339964152,1728231041115,-500.94640643,0.00013673,2]
[339964153,1728231041125,-9940.9729327,0.00013678,2]
[339964154,1728231041135,-1900.17434009,0.00013678,2]
[339964155,1728231041144,-151.0,0.00013678,2]
[339964156,1728231041153,-151.0,0.00013678,2]
[339964157,1728231041165,-19881.9458654,0.00013678,2]
[339964158,1728231041176,-3800.34868018,0.00013678,2]
[339964159,1728231041185,-150.0,0.00013685,2]
[339964160,1728231041196,-525.0,0.00013685,2]
[339964161,1728231041206,-1218.0,0.00013685,2]
[339964162,1728231041217,-9940.9729327,0.00013688,2]
[339964163,1728231041227,-1900.17434009,0.00013688,2]
[339964164,1728231041238,-151.0,0.00013688,2]
[339964165,1728231041250,-151.0,0.00013688,2]
[339964166,1728231041262,-151.0,0.00013688,2]
[339964167,1728231041273,-151.0,0.00013688,2]
[339964168,1728231041283,-151.0,0.00013688,2]
[339964169,1728231041294,-151.0,0.00013688,2]
[339964170,1728231041306,-151.0,0.00013688,2]
[339964171,1728231041317,-151.0,0.00013688,2]
[339964172,1728231041329,-151.0,0.00013688,2]
[339964173,1728231041339,-151.0,0.00013688,2]
[339964174,1728231041348,-282.168265,0.00013688,2]
[339964175,1728231041358,-151.0,0.00013688,2]
[339964176,1728231041370,-151.0,0.00013688,2]
[339964177,1728231041380,-151.0,0.00013688,2]
[339964178,1728231041391,-151.0,0.00013688,2]
[339964179,1728231041402,-151.0,0.00013688,2]
[339964180,1728231041416,-151.0,0.00013688,2]
[339964181,1728231041425,-985.805524,0.00013688,2]
[339964183,1728231041435,-205.716616,0.00013688,2]
[339964184,1728231041444,-985.805524,0.00013688,2]
[339964185,1728231041455,-153.800932,0.00013688,2]
[339964186,1728231041466,-153.800932,0.00013688,2]
[339964187,1728231041476,-151.0,0.00013688,2]
[339964188,1728231041486,-151.0,0.00013688,2]
[339964189,1728231041497,-2196.491497,0.00013688,2]
[339964190,1728231041508,-1361.07196935,0.00013688,2]
[339964191,1728231041530,-835.41952765,0.00013688,2]
[339964192,1728231041542,-151.0,0.00013688,2]
[339964193,1728231041553,-479.906595,0.00013688,2]
[339964194,1728231041563,-479.906595,0.00013688,2]
[339964195,1728231041574,-151.0,0.00013688,2]
[339964196,1728231041584,-355.0503,0.00013688,2]
[339964197,1728231041594,-355.0503,0.00013688,2]
[339964198,1728231041604,-151.0,0.00013688,2]
[339964199,1728231041614,-151.0,0.00013688,2]
[339964200,1728231041624,-151.0,0.00013688,2]
[339964201,1728231041633,-1548.566237,0.00013688,2]
[339964202,1728231041644,-1548.566237,0.00013688,2]
[339964203,1728231041655,-151.0,0.00013688,2]
[339964204,1728231041673,-183.283136,0.00013688,2]
[339964205,1728231041682,-151.0,0.00013688,2]
[339964206,1728231041694,-183.283136,0.00013688,2]
[339964207,1728231041705,-151.0,0.00013688,2]
[339964208,1728231041715,-151.0,0.00013688,2]
[339964209,1728231041726,-800.649275,0.00013688,2]
[339964210,1728231041737,-800.649275,0.00013688,2]
[339964211,1728231041748,-151.0,0.00013688,2]
[339964212,1728231041758,-540.188898,0.00013688,2]
[339964213,1728231041769,-151.0,0.00013688,2]
[339964214,1728231041780,-540.188898,0.00013688,2]
[339964215,1728231041791,-238.780664,0.00013688,2]
[339964216,1728231041801,-238.780664,0.00013688,2]
[339964217,1728231041812,-41119.97227946,0.00013688,2]
[339964227,1728231043602,-1538.225,0.00013688,2]
[339964237,1728231046678,-10561.08170596,0.00013688,2]
[339964239,1728231070169,15714.5956482,0.0001,2]
[339964240,1728231070199,26050.1961623,0.0001,2]
[339964252,1728232151179,-250.0,0.0001089,2]
[339964253,1728232151201,-608.0,0.00010959,2]
[339964254,1728232151223,-300.0,0.00011464,2]
[339964255,1728232151245,-300.0,0.00011464,2]
[339964256,1728232151266,-7656.237601,0.00011465,2]
[339964301,1728232231779,-300.0,0.00011464,2]
[339964303,1728232231789,-300.0,0.00011464,2]
[339964305,1728232231800,-10340.393789,0.00011465,2]
[339964307,1728232231812,-1506.46197818,0.00011465,2]
[339964310,1728232231825,-433.90707799,0.00011465,2]
[339964312,1728232231838,-760.904,0.00011465,2]
[339964398,1728232237842,-4202.09555383,0.00011465,2]
[339964399,1728232237854,-1069.90628654,0.00011575,2]
[339964400,1728232237864,-195.6126038,0.00011675,2]
[339964401,1728232237876,-3000.0,0.0001191,2]
[339964402,1728232237887,-420.0,0.00012592,2]
[339964403,1728232237898,-420.0,0.0001261,2]
[339964404,1728232237909,-500.0,0.0001292,2]
[339964405,1728232237920,-268.4720037,0.00013078,2]
[339964406,1728232237930,-274.878109,0.00013096,2]
[339964407,1728232237941,-2251.39807847,0.00013272,2]
[339964408,1728232237952,-6491.68127903,0.00013276,2]
[339964409,1728232237964,-603.526187,0.00013297,2]
[339964410,1728232237974,-208.30258486,0.00013311,2]
[339964411,1728232237986,-151.15045579,0.00013372,2]
[339964412,1728232237998,-882.861063,0.0001342,2]
[339964413,1728232238009,-603.526187,0.00013463,2]
[339964414,1728232238021,-2946.53999895,0.0001357,2]
[339964415,1728232238031,-1000.0,0.00013584,2]
[339964416,1728232238041,-1615.1481891,0.0001359,2]
[339964417,1728232238051,-654.80922054,0.00013596,2]
[339964418,1728232238062,-168.965,0.000136,2]
[339964419,1728232238074,-348.091158,0.000136,4]
[339964420,1728232238309,-22567.80703072,0.000136,2]
[339964421,1728232238320,-11924.74169192,0.000136,2]
[339964422,1728232238362,-4119.10071634,0.000136,2]
[339964423,1728232238375,-365.27204041,0.000136,2]
[339964424,1728232238420,-13590.88555133,0.000136,2]
[339964425,1728232238430,-603.526187,0.0001363,2]
[339964426,1728232238439,-2251.39807842,0.00013643,2]
[339964427,1728232238450,-547.78280574,0.00013673,2]
[339964428,1728232238459,-500.0,0.00013673,2]
[339964429,1728232238474,-500.0,0.00013673,2]
[339964430,1728232238483,-500.0,0.00013673,2]
[339964431,1728232238494,-500.0,0.00013673,2]
[339964432,1728232238506,-500.32495711,0.00013673,2]
[339964433,1728232238516,-500.0,0.00013673,2]
[339964434,1728232238526,-501.12462972,0.00013673,2]
[339964435,1728232238536,-501.36078887,0.00013673,2]
[339964436,1728232238547,-510.47111005,0.00013673,2]
[339964437,1728232238558,-500.0,0.00013673,2]
[339964438,1728232238569,-500.0,0.00013673,2]
[339964439,1728232238579,-500.0,0.00013673,2]
[339964440,1728232238590,-500.03590153,0.00013673,2]
[339964441,1728232238600,-502.28110308,0.00013673,2]
[339964442,1728232238611,-500.0,0.00013673,2]
[339964443,1728232238622,-500.0,0.00013673,2]
[339964444,1728232238632,-500.0,0.00013673,2]
[339964445,1728232238643,-1615.1481891,0.00013677,2]
[339964446,1728232238654,-1615.1481891,0.00013678,2]
[339964447,1728232238664,-14536.3337019,0.00013678,2]
[339964448,1728232238673,-1615.1481891,0.00013678,2]
[339964449,1728232238683,-369.4772742,0.00013687,2]
[339964450,1728232238693,-151.0,0.00013688,2]
[339964451,1728232238703,-261.881944,0.00013688,2]
[339964452,1728232238713,-501.270008,0.00013688,2]
[339964453,1728232238723,-501.270008,0.00013688,2]
[339964454,1728232238734,-423.97988,0.00013688,2]
[339964455,1728232238745,-423.97988,0.00013688,2]
[339964456,1728232238754,-151.0,0.00013688,2]
[339964457,1728232238766,-151.0,0.00013688,2]
[339964458,1728232238777,-2215.120521,0.00013688,2]
[339964459,1728232238787,-2215.120521,0.00013688,2]
[339964460,1728232238797,-1537.784775,0.00013688,2]
[339964461,1728232238808,-152.205329,0.00013688,2]
[339964462,1728232238820,-1537.784775,0.00013688,2]
[339964463,1728232238830,-294.276391,0.00013688,2]
[339964464,1728232238841,-294.276391,0.00013688,2]
[339964465,1728232238851,-1393.709613,0.00013688,2]
[339964466,1728232238862,-151.0,0.00013688,2]
[339964467,1728232238874,-1393.709613,0.00013688,2]
[339964468,1728232238884,-2137.335221,0.00013688,2]
[339964469,1728232238894,-2137.335221,0.00013688,2]
[339964470,1728232238906,-151.0,0.00013688,2]
[339964471,1728232238915,-151.0,0.00013688,2]
[339964472,1728232238926,-151.0,0.00013688,2]
[339964473,1728232238936,-151.0,0.00013688,2]
[339964474,1728232238946,-151.0,0.00013688,2]
[339964475,1728232238958,-151.0,0.00013688,2]
[339964476,1728232238968,-634.992688,0.00013688,2]
[339964477,1728232238982,-634.992688,0.00013688,2]
[339964478,1728232238992,-151.0,0.00013688,2]
[339964479,1728232239003,-151.0,0.00013688,2]
[339964480,1728232239014,-151.0,0.00013688,2]
[339964481,1728232239026,-164.954823,0.00013688,2]
[339964482,1728232239037,-209.73217,0.00013688,2]
[339964483,1728232239047,-164.954823,0.00013688,2]
[339964484,1728232239058,-151.0,0.00013688,2]
[339964485,1728232239069,-151.0,0.00013688,2]
[339964486,1728232239081,-164.954823,0.00013688,2]
[339964487,1728232239093,-164.954823,0.00013688,2]
[339964488,1728232239103,-151.0,0.00013688,2]
[339964489,1728232239114,-151.0,0.00013688,2]
[339964490,1728232239125,-151.0,0.00013688,2]
[339964491,1728232239136,-151.0,0.00013688,2]
[339964492,1728232239147,-151.0,0.00013688,2]
[339964493,1728232239158,-151.0,0.00013688,2]
[339964494,1728232239168,-319.54527,0.00013688,2]
[339964495,1728232239179,-319.54527,0.00013688,2]
[339964496,1728232239191,-319.54527,0.00013688,2]
[339964497,1728232239202,-319.54527,0.00013688,2]
[339964498,1728232239212,-1204.543508,0.00013688,2]
[339964499,1728232239223,-997.12744527,0.00013688,2]
[339964501,1728232239238,-207.41606273,0.00013688,2]
[339964502,1728232239249,-1204.543508,0.00013688,2]
[339964503,1728232239259,-1204.543508,0.00013688,2]
[339964504,1728232239268,-11306.0373237,0.00013688,2]
[339964505,1728232239277,-150.0,0.00013689,2]
[339964506,1728232239287,-525.0,0.00013689,2]
[339964509,1728232239297,-300.0,0.00013696,2]
[339964510,1728232239307,-150.0,0.00013696,2]
[339964511,1728232239317,-3200.0,0.00013696,2]
[339964512,1728232239326,-151.0,0.00013697,2]
[339964513,1728232239336,-151.0,0.00013697,2]
[339964515,1728232239346,-151.0,0.00013697,2]
[339964516,1728232239355,-151.0,0.00013697,2]
[339964518,1728232239364,-584.721554,0.00013697,2]
[339964520,1728232239374,-584.721554,0.00013697,2]
[339964521,1728232239383,-151.0,0.00013697,2]
[339964522,1728232239393,-151.0,0.00013697,2]
[339964523,1728232239402,-151.0,0.00013697,2]
[339964524,1728232239412,-151.0,0.00013697,2]
[339964525,1728232239422,-151.0,0.00013697,2]
[339964526,1728232239431,-771.449309,0.00013697,2]
[339964527,1728232239441,-357.501761,0.00013697,2]
[339964528,1728232239451,-771.449309,0.00013697,2]
[339964529,1728232239460,-357.501761,0.00013697,2]
[339964530,1728232239474,-151.0,0.00013697,2]
[339964531,1728232239483,-151.0,0.00013697,2]
[339964532,1728232239493,-720.584347,0.00013697,2]
[339964533,1728232239503,-720.584347,0.00013697,2]
[339964534,1728232239513,-15900.63330825,0.00013698,2]
[339964535,1728232239524,-2351.71418294,0.00013698,2]
[339964536,1728232239536,-5408.80047885,0.00013698,2]
[339964537,1728232239547,-17759.32566002,0.00013698,2]
[339964538,1728232239556,-435.83701732,0.00013698,2]
[339964539,1728232239566,-564.42454099,0.00013698,2]
[339964540,1728232239575,-395.09717869,0.00013698,2]
[339964541,1728232239585,-500.0,0.00013698,2]
[339964542,1728232239596,-500.0,0.00013698,2]
[339964543,1728232239605,-500.0,0.00013698,2]
[339964544,1728232239614,-626.97023094,0.00013698,2]
[339964545,1728232239624,-500.0,0.00013698,2]
[339964546,1728232239633,-443.76447385,0.00013698,2]
[339964547,1728232239644,-500.0,0.00013698,2]
[339964548,1728232239654,-458.87916166,0.00013698,2]
[339964549,1728232239663,-254.40653457,0.00013698,2]
[339964550,1728232239673,-151.0,0.00013698,2]
[339964551,1728232239682,-151.0,0.00013698,2]
[339964552,1728232239691,-151.0,0.00013698,2]
[339964553,1728232239701,-275.401822,0.00013698,2]
[339964554,1728232239711,-169.10232,0.00013698,2]
[339964555,1728232239720,-151.0,0.00013698,2]
[339964556,1728232239730,-165.618076,0.00013698,2]
[339964557,1728232239739,-232.330211,0.00013698,2]
[339964558,1728232239749,-151.0,0.00013698,2]
[339964559,1728232239759,-151.0,0.00013698,2]
[339964560,1728232239768,-151.0,0.00013698,2]
[339964561,1728232239777,-152.394778,0.00013698,2]
[339964562,1728232239787,-151.0,0.00013698,2]
[339964563,1728232239796,-151.0,0.00013698,2]
[339964564,1728232239805,-151.0,0.00013698,2]
[339964565,1728232239815,-282.168265,0.00013698,2]
[339964566,1728232239826,-151.0,0.00013698,2]
[339964567,1728232239837,-355.908775,0.00013698,2]
[339964568,1728232239847,-151.0,0.00013698,2]
[339964569,1728232239856,-355.908775,0.00013698,2]
[339964570,1728232239866,-153.604741,0.00013698,2]
[339964571,1728232239878,-355.908775,0.00013698,2]
[339964572,1728232239887,-355.908775,0.00013698,2]
[339964573,1728232239899,-355.908775,0.00013698,2]
[339964574,1728232239910,-355.908775,0.00013698,2]
[339964575,1728232239923,-355.908775,0.00013698,2]
[339964576,1728232239933,-355.908775,0.00013698,2]
[339964577,1728232239943,-355.908775,0.00013698,2]
[339964578,1728232239954,-355.908775,0.00013698,2]
[339964579,1728232239967,-355.908775,0.00013698,2]
[339964580,1728232239979,-355.908775,0.00013698,2]
[339964581,1728232239990,-355.908775,0.00013698,2]
[339964582,1728232240001,-355.908775,0.00013698,2]
[339964583,1728232240012,-355.908775,0.00013698,2]
[339964584,1728232240024,-355.908775,0.00013698,2]
[339964585,1728232240033,-355.908775,0.00013698,2]
[339964586,1728232240043,-355.908775,0.00013698,2]
[339964587,1728232240053,-355.908775,0.00013698,2]
[339964588,1728232240064,-355.908772,0.00013698,2]
[339964589,1728232240075,-151.0,0.00013698,2]
[339964590,1728232240086,-151.0,0.00013698,2]
[339964591,1728232240098,-151.0,0.00013698,2]
[339964592,1728232240108,-151.0,0.00013698,2]
[339964593,1728232240119,-151.0,0.00013698,2]
[339964594,1728232240131,-151.0,0.00013698,2]
[339964595,1728232240141,-500.0,0.00013698,2]
[339964596,1728232240153,-151.0,0.00013698,2]
[339964597,1728232240162,-151.0,0.00013698,2]
[339964598,1728232240173,-151.0,0.00013698,2]
[339964599,1728232240185,-151.0,0.00013698,2]
[339964600,1728232240194,-151.0,0.00013698,2]
[339964601,1728232240207,-151.0,0.00013698,2]
[339964602,1728232240217,-151.0,0.00013698,2]
[339964603,1728232240227,-151.0,0.00013698,2]
[339964604,1728232240238,-166.362821,0.00013698,2]
[339964605,1728232240249,-500.0,0.00013698,2]
[339964606,1728232240259,-500.0,0.00013698,2]
[339964607,1728232240270,-556.6,0.00013698,2]
[339964608,1728232240279,-500.0,0.00013698,2]
[339964609,1728232240291,-500.0,0.00013698,2]
[339964610,1728232240301,-500.0,0.00013698,2]
[339964611,1728232240312,-500.0,0.00013698,2]
[339964612,1728232240322,-500.0,0.00013698,2]
[339964613,1728232240333,-834.58,0.00013698,2]
[339964614,1728232240350,-500.0,0.00013698,2]
[339964615,1728232240361,-500.0,0.00013698,2]
[339964616,1728232240372,-500.0,0.00013698,2]
[339964617,1728232240383,-500.0,0.00013698,2]
[339964618,1728232240395,-500.0,0.00013698,2]
[339964619,1728232240407,-500.0,0.00013698,2]
[339964620,1728232240418,-478.73481286,0.00013698,2]
[339964621,1728232240428,-500.0,0.00013698,2]
[339964622,1728232240439,-500.0,0.00013698,2]
[339964623,1728232240452,-500.0,0.00013698,2]
[339964624,1728232240464,-500.0,0.00013698,2]
[339964625,1728232240476,-1311.37,0.00013698,2]
[339964626,1728232240485,-500.0,0.00013698,2]
[339964627,1728232240497,-500.0,0.00013698,2]
[339964628,1728232240508,-500.0,0.00013698,2]
[339964629,1728232240521,-500.0,0.00013698,2]
[339964630,1728232240532,-500.0,0.00013698,2]
[339964631,1728232240543,-500.0,0.00013698,2]
[339964632,1728232240553,-343.34790887,0.00013698,2]
[339964633,1728232240564,-500.0,0.00013698,2]
[339964634,1728232240574,-500.0,0.00013698,2]
[339964635,1728232240585,-500.0,0.00013698,2]
[339964636,1728232240598,-500.0,0.00013698,2]
[339964637,1728232240609,-152.74082099,0.00013698,2]
[339964638,1728232240619,-1340.0,0.00013698,2]
[339964639,1728232240629,-500.0,0.00013698,2]
[339964641,1728232240640,-500.0,0.00013698,2]
[339964642,1728232240650,-500.0,0.00013698,2]
[339964643,1728232240661,-500.0,0.00013698,2]
[339964644,1728232240671,-500.0,0.00013698,2]
[339964645,1728232240681,-500.0,0.00013698,2]
[339964646,1728232240693,-623.29,0.00013698,2]
[339964647,1728232240703,-500.0,0.00013698,2]
[339964648,1728232240713,-500.0,0.00013698,2]
[339964649,1728232240723,-500.0,0.00013698,2]
[339964650,1728232240733,-500.0,0.00013698,2]
[339964651,1728232240744,-500.0,0.00013698,2]
[339964652,1728232240753,-500.0,0.00013698,2]
[339964653,1728232240763,-151.0,0.00013698,2]
[339964654,1728232240773,-500.0,0.00013698,2]
[339964655,1728232240783,-151.0,0.00013698,2]
[339964656,1728232240793,-152.306952,0.00013698,2]
[339964657,1728232240804,-500.0,0.00013698,2]
[339964658,1728232240813,-562.84177196,0.00013698,2]
[339964659,1728232240823,-500.0,0.00013698,2]
[339964660,1728232240834,-500.0,0.00013698,2]
[339964661,1728232240845,-500.0,0.00013698,2]
[339964662,1728232240855,-500.0,0.00013698,2]
[339964663,1728232240864,-500.0,0.00013698,2]
[339964664,1728232240875,-500.0,0.00013698,2]
[339964665,1728232240885,-542.07,0.00013698,2]
[339964666,1728232240896,-500.0,0.00013698,2]
[339964667,1728232240907,-500.0,0.00013698,2]
[339964668,1728232240919,-132.95326553,0.00013698,2]
[339964669,1728232241275,-500.0,0.00012698,2]
[339964670,1728232241286,-18.04673447,0.00013698,2]
[339964671,1728232241297,-151.0,0.00013698,2]
[339964672,1728232241308,-151.0,0.00013698,2]
[339964673,1728232241317,-151.0,0.00013698,2]
[339964674,1728232241327,-214.580527,0.00013698,2]
[339964675,1728232241337,-500.0,0.00013698,2]
[339964676,1728232241349,-500.0,0.00013698,2]
[339964677,1728232241358,-500.0,0.00013698,2]
[339964678,1728232241367,-500.0,0.00013698,2]
[339964679,1728232241376,-500.0,0.00013698,2]
[339964680,1728232241385,-215.39473056,0.00013698,2]
[339964681,1728232241395,-618.40642688,0.00013698,2]
[339964682,1728232241405,-500.0,0.00013698,2]
[339964683,1728232241414,-500.0,0.00013698,2]
[339964684,1728232241423,-500.0,0.00013698,2]
[339964685,1728232241433,-500.0,0.00013698,2]
[339964686,1728232241442,-500.0,0.00013698,2]
[339964687,1728232241452,-500.0,0.00013698,2]
[339964688,1728232241461,-500.0,0.00013698,2]
[339964689,1728232241474,-624.76,0.00013698,2]
[339964690,1728232241483,-500.0,0.00013698,2]
[339964691,1728232241492,-674.6,0.00013698,2]
[339964692,1728232241501,-500.0,0.00013698,2]
[339964693,1728232241512,-500.0,0.00013698,2]
[339964694,1728232241521,-500.0,0.00013698,2]
[339964695,1728232241530,-500.0,0.00013698,2]
[339964696,1728232241540,-500.0,0.00013698,2]
[339964697,1728232241550,-500.0,0.00013698,2]
[339964698,1728232241559,-151.0,0.00013698,2]
[339964699,1728232241568,-151.0,0.00013698,2]
[339964700,1728232241577,-151.0,0.00013698,2]
[339964701,1728232241587,-263.71728,0.00013698,2]
[339964702,1728232241597,-500.0,0.00013698,2]
[339964703,1728232241606,-500.0,0.00013698,2]
[339964704,1728232241615,-500.0,0.00013698,2]
[339964705,1728232241625,-500.0,0.00013698,2]
[339964706,1728232241634,-500.0,0.00013698,2]
[339964707,1728232241644,-500.0,0.00013698,2]
[339964708,1728232241653,-500.0,0.00013698,2]
[339964709,1728232241663,-500.0,0.00013698,2]
[339964710,1728232241672,-500.0,0.00013698,2]
[339964711,1728232241682,-669.98,0.00013698,2]
[339964712,1728232241691,-500.0,0.00013698,2]
[339964713,1728232241701,-647.93,0.00013698,2]
[339964714,1728232241710,-500.0,0.00013698,2]
[339964715,1728232241719,-500.0,0.00013698,2]
[339964716,1728232241729,-500.0,0.00013698,2]
[339964717,1728232241738,-500.0,0.00013698,2]
[339964718,1728232241748,-500.0,0.00013698,2]
[339964719,1728232241757,-764.12,0.00013698,2]
[339964720,1728232241766,-500.0,0.00013698,2]
[339964721,1728232241776,-776.92,0.00013698,2]
[339964722,1728232241785,-501.34489225,0.00013698,2]
[339964723,1728232241794,-500.0,0.00013698,2]
[339964724,1728232241804,-500.0,0.00013698,2]
[339964725,1728232241813,-500.0,0.00013698,2]
[339964726,1728232241822,-500.0,0.00013698,2]
[339964727,1728232241831,-1616.99,0.00013698,2]
[339964728,1728232241841,-151.0,0.00013698,2]
[339964729,1728232241850,-151.0,0.00013698,2]
[339964730,1728232241860,-151.0,0.00013698,2]
[339964731,1728232241869,-152.116987,0.00013698,2]
[339964732,1728232241878,-500.0,0.00013698,2]
[339964733,1728232241888,-314.58418387,0.00013698,2]
[339964734,1728232241897,-500.0,0.00013698,2]
[339964735,1728232241907,-500.0,0.00013698,2]
[339964736,1728232241916,-500.0,0.00013698,2]
[339964737,1728232241926,-5601.14,0.00013698,2]
[339964738,1728232241935,-501.25792101,0.00013698,2]
[339964739,1728232241945,-500.0,0.00013698,2]
[339964740,1728232241954,-500.0,0.00013698,2]
[339964741,1728232241964,-688.12,0.00013698,2]
[339964742,1728232241973,-500.0,0.00013698,2]
[339964743,1728232241983,-500.0,0.00013698,2]
[339964744,1728232241992,-509.06,0.00013698,2]
[339964745,1728232242002,-500.0,0.00013698,2]
[339964746,1728232242011,-500.0,0.00013698,2]
[339964747,1728232242020,-458.30709146,0.00013698,2]
[339964748,1728232242029,-500.0,0.00013698,2]
[339964749,1728232242039,-500.0,0.00013698,2]
[339964750,1728232242048,-500.0,0.00013698,2]
[339964751,1728232242057,-500.0,0.00013698,2]
[339964752,1728232242067,-500.0,0.00013698,2]
[339964753,1728232242076,-500.0,0.00013698,2]
[339964754,1728232242242,-735.64,0.00013698,2]
[339964755,1728232242254,-500.0,0.00013698,2]
[339964756,1728232242263,-500.0,0.00013698,2]
[339964757,1728232242272,-500.0,0.00013698,2]
[339964758,1728232242282,-626.68,0.00013698,2]
[339964759,1728232242291,-500.0,0.00013698,2]
[339964760,1728232242301,-500.0,0.00013698,2]
[339964761,1728232242310,-500.0,0.00013698,2]
[339964762,1728232242320,-500.0,0.00013698,2]
[339964763,1728232242329,-508.5642585,0.00013698,2]
[339964764,1728232242338,-500.0,0.00013698,2]
[339964766,1728232242348,-500.0,0.00013698,2]
[339964768,1728232242358,-500.0,0.00013698,2]
[339964770,1728232242367,-508.13147297,0.00013698,2]
[339964773,1728232242376,-546.67,0.00013698,2]
[339964776,1728232242386,-559.4,0.00013698,2]
[339964779,1728232242395,-500.0,0.00013698,2]
[339964781,1728232242404,-500.0,0.00013698,2]
[339964782,1728232242414,-500.0,0.00013698,2]
[339964783,1728232242423,-1000.0,0.00013698,2]
[339964784,1728232242432,-500.0,0.00013698,2]